bitfinex-derivatives/quotes_SOLF0:USTF0_20250106
["timestamp","ask_amount","ask_price","bid_price","bid_amount"]
[1736185456216,11.16798042,217.78,217.71,3.48]
[1736185456421,11.16798042,217.81,217.71,3.48]
[1736185456619,2.2955,217.79,217.73,2.296]
[1736185457020,2.2955,217.79,217.71,3.48]
[1736185457021,11.16798042,217.81,217.71,3.48]
[1736185457218,2.2953,217.8,217.74,2.2958]
[1736185457522,2.2953,217.8,217.71,3.48]
[1736185457722,13.46318042,217.81,217.75,2.2957]
[1736185457924,11.16798042,217.84,217.71,14.64798042]
[1736185458217,2.2949,217.84,217.74,2.2958]
[1736185458421,7.52246251,217.92,217.74,11.16798042]
[1736185458624,11.16798042,217.89,217.74,11.16798042]
[1736185459421,2.2947,217.86,217.74,11.16798042]
[1736185459623,11.16798042,217.86,217.74,11.16798042]
[1736185459824,11.16798042,217.83,217.71,3.48]
[1736185460020,11.16798042,217.83,217.74,2.2959]
[1736185460221,11.16798042,217.83,217.71,3.48]
[1736185460425,2.2949,217.84,217.77,2.2955]
[1736185460617,2.2949,217.84,217.77,3.48]
[1736185461016,2.2948,217.85,217.77,3.48]
[1736185461916,2.2947,217.86,217.8,2.2953]
[1736185462716,25.3313866,217.92,217.78,1.4354]
[1736185463219,17.80892409,217.88,217.78,1.4354]
[1736185463724,7.52246251,217.92,217.72,3.48]
[1736185463725,17.80892409,217.84,217.72,3.48]
[1736185464030,2.2952,217.81,217.72,5.7761]
[1736185464227,17.80892409,217.84,217.72,5.7761]
[1736185464527,2.2959,217.74,217.69,53.9789]
[1736185464722,2.2959,217.74,217.7,3.48]
[1736185464919,17.80892409,217.8,217.7,3.48]
[1736185465120,17.80892409,217.8,217.69,4.9389]
[1736185467621,2.2956,217.77,217.69,4.9389]
[1736185468122,2.2955,217.79,217.73,2.296]
[1736185468629,17.80892409,217.84,217.73,2.296]
[1736185468832,2.2955,217.78,217.73,2.296]
[1736185469227,2.2951,217.83,217.77,2.2956]
[1736185469531,2.2951,217.83,217.75,3.48]
[1736185469532,17.80892409,217.83,217.75,3.48]
[1736185470833,2.2955,217.78,217.75,3.48]
[1736185471532,2.2954,217.8,217.75,3.48]
[1736185471722,17.80892409,217.83,217.75,3.48]
[1736185472434,2.2956,217.78,217.71,3.48]
[1736185473631,2.2956,217.78,217.74,2.2959]
[1736185474125,17.80892409,217.85,217.71,3.48]
[1736185474322,13.8,218.0,217.71,3.48]
[1736185474323,17.80892409,217.89,217.71,21.28892409]
[1736185475134,113.22738601,217.93,217.75,17.80892409]
[1736185475332,2.2947,217.86,217.81,2.2951]
[1736185475631,113.22738601,217.93,217.8,3.48]
[1736185475932,113.22738601,217.93,217.85,2.2947]
[1736185476433,95.41846192,217.93,217.81,1.4685]
[1736185477032,97.71236192,217.93,217.88,2.2944]
[1736185477332,17.80892409,218.01,217.86,3.48]
[1736185477526,2.2933,217.99,217.87,1.397]
[1736185477731,17.80892409,218.01,217.87,1.397]
[1736185477931,17.80892409,218.01,217.88,3.48]
[1736185478128,2.2941,217.92,217.88,3.48]
[1736185478535,0.2389,218.06,217.88,3.48]
[1736185478728,2.2937,217.96,217.88,3.48]
[1736185478940,17.80892409,218.02,217.88,3.48]
[1736185479136,2.2937,217.95,217.89,2.2943]
[1736185479340,17.80892409,218.02,217.88,3.48]
[1736185479837,2.2935,217.97,217.93,2.2939]
[1736185480034,17.80892409,218.02,217.88,3.48]
[1736185480230,17.80892409,217.98,217.86,3.48]
[1736185480437,2.2938,217.95,217.86,5.7746]
[1736185480737,17.80892409,217.98,217.86,3.48]
[1736185481138,17.80892409,217.98,217.88,2.2944]
[1736185481337,17.80892409,217.98,217.86,3.48]
[1736185481843,2.2935,217.98,217.92,2.2939]
[1736185482038,2.2935,217.98,217.86,21.28892409]
[1736185482239,2.2933,217.99,217.94,2.2938]
[1736185482638,2.2933,217.99,217.92,3.48]
[1736185482946,2.2932,218.01,217.96,2.2935]
[1736185483240,11.11244796,218.04,217.96,2.2935]
[1736185483430,2.2932,218.0,217.96,2.2935]
[1736185483831,11.11244796,218.01,217.94,3.4]
[1736185484044,2.2935,217.97,217.94,3.4]
[1736185485241,0.2389,218.06,217.94,3.4]
[1736185485442,17.78702094,218.04,217.94,5.6938]
[1736185485748,2.2931,218.01,217.94,3.4]
[1736185485948,17.78702094,218.04,217.95,5.6936]
[1736185486144,17.78702094,218.04,217.95,3.4]
[1736185486448,0.2389,218.06,217.95,3.4]
[1736185486844,0.2389,218.06,217.99,2.2933]
[1736185486845,2.2928,218.04,217.99,2.2933]
[1736185487345,2.2928,218.04,218.0,2.2932]
[1736185487740,2.2928,218.04,217.95,3.4]
[1736185487949,17.78702094,218.08,217.88,17.78702094]
[1736185488147,17.78702094,218.08,217.89,3.4]
[1736185489045,2.2927,218.04,218.0,2.2931]
[1736185489438,0.2366,218.12,217.98,3.4]
[1736185490139,2.2923,218.08,218.02,2.2929]
[1736185490338,0.2366,218.12,217.98,3.4]
[1736185490549,0.2366,218.12,217.99,3.4]
[1736185490751,17.78702094,218.09,217.99,3.4]
[1736185490939,2.2926,218.05,218.0,2.2929]
[1736185491143,2.2926,218.05,217.99,3.4]
[1736185491339,2.2926,218.05,218.0,3.4]
[1736185491744,2.2926,218.05,218.0,5.6929]
[1736185492245,2.2926,218.05,218.0,3.4]
[1736185492447,2.2926,218.05,218.01,2.2929]
[1736185493351,2.2929,218.02,218.0,3.4]
[1736185493648,17.78702094,218.09,218.0,3.4]
[1736185493853,17.78702094,218.01,217.84,43.25526868]
[1736185494148,17.78702094,218.01,217.88,3.4]
[1736185494351,2.2934,217.97,217.92,2.2938]
[1736185495544,17.78702094,218.01,217.91,3.4]
[1736185495752,2.2929,218.01,217.91,3.4]
[1736185496254,2.2929,218.01,217.96,2.2933]
[1736185497253,17.78702094,218.06,217.91,3.4]
[1736185497448,17.78702094,218.06,217.88,17.78702094]
[1736185497753,17.78702094,218.06,217.92,3.4]
[1736185497945,2.2931,217.99,217.92,3.4]
[1736185498150,17.78702094,218.06,217.92,3.4]
[1736185500252,17.78702094,218.06,217.97,2.2933]
[1736185500253,2.2929,218.01,217.97,2.2933]
[1736185500753,17.78702094,218.06,217.96,3.4]
[1736185500953,17.78702094,218.02,217.85,2.9726]
[1736185501155,17.78702094,217.98,217.85,2.9726]
[1736185501458,2.2941,217.91,217.86,2.2944]
[1736185501658,17.78702094,217.94,217.84,3.4]
[1736185501858,17.78702094,217.94,217.84,2.2947]
[1736185502356,17.78702094,217.94,217.82,3.4]
[1736185502854,2.2939,217.92,217.82,3.4]
[1736185503159,17.78702094,217.94,217.89,2.2941]
[1736185503853,2.2937,217.94,217.82,3.4]
[1736185504061,2.2937,217.94,217.9,2.294]
[1736185504358,17.78702094,217.98,217.82,3.4]
[1736185504663,0.2356,218.01,217.84,17.78702094]
[1736185505161,2.2934,217.97,217.92,2.2938]
[1736185505362,0.2356,218.01,217.89,3.4]
[1736185505661,2.2935,217.96,217.91,2.2939]
[1736185506264,17.78702094,217.98,217.89,5.6941]
[1736185506453,17.78702094,217.98,217.86,3.4]
[1736185506756,0.2356,218.01,217.86,3.4]
[1736185506757,2.2943,217.88,217.86,3.4]
[1736185506960,17.78702094,217.94,217.86,3.4]
[1736185507359,2.2943,217.89,217.86,3.4]
[1736185507758,17.78702094,217.94,217.86,3.4]
[1736185508563,2.294,217.91,217.86,5.6944]
[1736185508763,17.78702094,217.94,217.81,3.4]
[1736185509263,2.2942,217.89,217.85,2.2945]
[1736185509466,17.78702094,217.94,217.81,3.4]
[1736185509859,17.78702094,217.94,217.8,3.4]
[1736185510060,2.2946,217.85,217.8,3.4]
[1736185510660,17.78702094,217.9,217.8,2.2951]
[1736185510964,0.2371,217.92,217.73,1.4259]
[1736185510965,17.78702094,217.86,217.73,1.4259]
[1736185511163,17.78702094,217.86,217.74,3.4]
[1736185511465,2.2951,217.8,217.74,3.4]
[1736185511861,17.78702094,217.86,217.74,3.4]
[1736185512159,3.4,217.88,217.71,3.4]
[1736185512160,17.78702094,217.82,217.71,3.4]
[1736185512359,17.78702094,217.82,217.69,1.4469]
[1736185512562,21.18702094,217.82,217.67,26.94874774]
[1736185512754,17.78702094,217.78,217.67,28.86824774]
[1736185512957,17.78702094,217.78,217.63,4.8469]
[1736185513155,2.2958,217.75,217.69,2.2964]
[1736185513856,2.2959,217.74,217.68,2.2965]
[1736185514361,2.2958,217.75,217.68,2.2964]
[1736185514566,17.78702094,217.78,217.68,2.2964]
[1736185515161,2.2958,217.74,217.68,2.2964]
[1736185515362,2.2958,217.74,217.64,3.26]
[1736185515566,2.2958,217.74,217.69,2.2963]
[1736185516568,17.78702094,217.78,217.64,3.26]
[1736185517772,2.2958,217.74,217.64,3.26]
[1736185517965,21.04702094,217.74,217.62,1.5056]
[1736185518165,21.04702094,217.74,217.59,3.26]
[1736185518870,2.2962,217.71,217.65,2.2966]
[1736185519372,2.2963,217.69,217.65,2.2966]
[1736185519671,2.2963,217.69,217.64,2.2968]
[1736185519874,21.04702094,217.74,217.59,3.26]
[1736185520963,21.04702094,217.74,217.55,1.528]
[1736185521162,2.2962,217.7,217.66,2.2966]
[1736185521466,21.04702094,217.74,217.56,3.28]
[1736185521668,17.78702094,217.7,217.56,3.28]
[1736185522270,17.78702094,217.7,217.55,1.528]
[1736185522572,17.78702094,217.66,217.55,1.528]
[1736185522975,2.2971,217.62,217.58,2.2974]
[1736185523171,2.2971,217.62,217.55,1.528]
[1736185523376,2.2971,217.62,217.52,6.2302]
[1736185524170,2.2971,217.62,217.57,2.2975]
[1736185524473,3.28,217.69,217.52,6.2302]
[1736185524880,2.2967,217.65,217.57,2.2976]
[1736185525070,3.28,217.69,217.52,6.2302]
[1736185525471,2.2966,217.67,217.62,2.2969]
[1736185525875,3.28,217.69,217.62,2.2969]
[1736185526275,21.06702094,217.7,217.62,2.2969]
[1736185526671,17.78702094,217.7,217.52,6.2302]
[1736185526975,3.28,217.75,217.58,17.78702094]
[1736185527176,2.2961,217.71,217.59,4.7649]
[1736185527474,3.28,217.75,217.59,4.7649]
[1736185527778,2.2962,217.71,217.66,2.2965]
[1736185527976,2.2962,217.71,217.59,4.7649]
[1736185528180,2.296,217.72,217.59,4.7649]
[1736185528479,17.78702094,217.72,217.59,4.7649]
[1736185528678,17.78702094,217.68,217.59,4.7649]
[1736185528878,17.78702094,217.68,217.59,3.28]
[1736185529272,2.297,217.63,217.59,3.28]
[1736185529477,2.297,217.63,217.53,3.28]
[1736185530080,2.297,217.63,217.59,2.2972]
[1736185531882,2.297,217.63,217.6,2.2972]
[1736185532083,2.2968,217.64,217.6,2.2972]
[1736185532684,17.78702094,217.68,217.59,2.2973]
[1736185533382,17.78702094,217.68,217.54,3.28]
[1736185533383,2.2965,217.67,217.64,2.2968]
[1736185533584,17.78702094,217.68,217.64,2.2968]
[1736185533779,17.78702094,217.72,217.54,21.06702094]
[1736185533978,2.2961,217.71,217.54,21.06702094]
[1736185534682,2.2962,217.7,217.54,21.06702094]
[1736185535387,2.2964,217.68,217.54,21.06702094]
[1736185536078,21.06702094,217.74,217.54,17.78702094]
[1736185536280,21.06702094,217.74,217.55,3.28]
[1736185536281,2.2967,217.65,217.55,3.28]
[1736185536480,17.78702094,217.7,217.55,3.28]
[1736185536680,2.2966,217.66,217.61,2.2971]
[1736185537280,2.2966,217.66,217.62,2.297]
[1736185538480,17.78702094,217.66,217.57,3.28]
[1736185538678,17.78702094,217.66,217.53,3.28]
[1736185538884,17.78702094,217.66,217.52,2.9502]
[1736185539085,2.2971,217.62,217.58,2.2974]
[1736185539586,2.297,217.63,217.59,2.2973]
[1736185539785,17.78702094,217.66,217.53,3.28]
[1736185540287,2.2969,217.64,217.59,2.2972]
[1736185540881,17.78702094,217.66,217.53,3.28]
[1736185541479,2.2967,217.65,217.61,2.2971]
[1736185542182,2.2965,217.67,217.53,3.28]
[1736185542382,21.06702094,217.7,217.53,3.28]
[1736185542887,2.2967,217.66,217.53,3.28]
[1736185543278,2.2974,217.59,217.54,2.2978]
[1736185543486,17.78702094,217.61,217.54,2.2978]
[1736185543687,17.78702094,217.61,217.48,3.0372]
[1736185543985,2.2976,217.57,217.51,2.2981]
[1736185544183,17.78702094,217.61,217.48,3.0372]
[1736185544983,17.78702094,217.57,217.46,1.4794]
[1736185545286,20.92702094,217.57,217.46,1.4794]
[1736185546087,2.2979,217.54,217.49,2.2984]
[1736185546290,20.92702094,217.57,217.46,1.4794]
[1736185546793,2.2979,217.54,217.46,1.4794]
[1736185547290,2.2976,217.57,217.46,1.4794]
[1736185547487,25.31617667,217.69,217.46,1.4794]
[1736185547488,3.14,217.62,217.46,1.4794]
[1736185547790,3.14,217.64,217.46,1.4794]
[1736185547989,2.2974,217.59,217.46,1.4794]
[1736185548287,3.14,217.64,217.46,1.4794]
[1736185548696,20.92702094,217.64,217.46,1.4794]
[1736185549588,17.78702094,217.6,217.47,3.14]
[1736185551093,17.78702094,217.6,217.53,2.298]
[1736185551292,17.78702094,217.6,217.47,3.14]
[1736185551691,17.78702094,217.64,217.48,17.78702094]
[1736185551890,25.31617667,217.69,217.48,17.78702094]
[1736185552188,2.2967,217.65,217.48,17.78702094]
[1736185552393,25.31617667,217.69,217.52,17.78702094]
[1736185552597,25.31617667,217.69,217.53,6.1292]
[1736185552795,2.2965,217.67,217.62,2.2969]
[1736185552997,2.2965,217.67,217.53,6.1292]
[1736185553290,25.31617667,217.69,217.53,6.1292]
[1736185553291,2.2964,217.68,217.53,6.1292]
[1736185553992,2.2965,217.67,217.62,2.2969]
[1736185554391,2.2965,217.67,217.54,3.14]
[1736185554392,25.31617667,217.69,217.55,1.4203]
[1736185554597,2.2964,217.68,217.64,2.2968]
[1736185554794,2.2964,217.68,217.55,1.4203]
[1736185555792,27.61247667,217.69,217.64,2.2968]
[1736185556403,25.31617667,217.69,217.66,2.2966]
[1736185556598,0.2419,217.79,217.62,3.14]
[1736185556789,17.78702094,217.77,217.63,4.5857]
[1736185557095,17.78702094,217.81,217.65,17.78702094]
[1736185557296,17.78702094,217.81,217.66,1.4762]
[1736185557498,2.2946,217.85,217.69,17.78702094]
[1736185557697,13.75587501,217.9,217.73,17.78702094]
[1736185557993,2.2943,217.89,217.83,2.2948]
[1736185558194,95.41696496,217.93,217.81,3.14]
[1736185558902,2.2939,217.92,217.81,3.14]
[1736185559195,95.41696496,217.93,217.81,3.14]
[1736185559601,95.41696496,217.93,217.81,20.92702094]
[1736185559893,20.08002094,218.01,217.93,2.2937]
[1736185560196,17.78702094,217.97,217.81,17.78702094]
[1736185560396,2.2939,217.92,217.82,3.14]
[1736185560593,2.2939,217.92,217.85,2.2946]
[1736185561198,2.294,217.91,217.83,5.4347]
[1736185561398,17.78702094,217.93,217.83,3.14]
[1736185561598,17.78702094,217.89,217.83,3.14]
[1736185562291,17.78702094,217.92,217.83,3.14]
[1736185562490,17.78702094,217.88,217.83,3.14]
[1736185562895,17.78702094,217.88,217.78,3.14]
[1736185563094,17.78702094,217.84,217.78,3.14]
[1736185563293,2.295,217.82,217.78,3.14]
[1736185563598,17.78702094,217.84,217.74,6.1096]
[1736185564192,17.78702094,217.88,217.74,6.1096]
[1736185564391,2.2946,217.85,217.77,2.2953]
[1736185564593,17.78702094,217.88,217.74,6.1096]
[1736185564994,2.2946,217.85,217.79,2.2952]
[1736185565196,17.78702094,217.92,217.8,3.14]
[1736185565591,17.78702094,217.92,217.81,2.295]
[1736185565592,2.2943,217.88,217.81,2.295]
[1736185565803,17.78702094,217.92,217.8,3.14]
[1736185566196,2.294,217.91,217.84,2.2946]
[1736185566597,17.78702094,217.92,217.84,2.2946]
[1736185567601,17.78702094,217.92,217.8,3.14]
[1736185568003,20.08052094,217.96,217.89,2.2941]
[1736185568202,17.78702094,217.96,217.86,3.14]
[1736185568599,2.2936,217.94,217.89,2.2941]
[1736185568800,17.78702094,217.96,217.86,3.14]
[1736185569203,20.08052094,217.96,217.9,2.294]
[1736185569406,17.78702094,218.0,217.86,3.14]
[1736185569599,17.78702094,218.0,217.87,3.0235]
[1736185569801,17.78702094,218.0,217.94,2.2936]
[1736185570001,7.75811652,218.06,217.92,3.14]
[1736185570199,17.78702094,218.05,217.93,3.14]
[1736185570405,2.2926,218.04,217.93,3.14]
[1736185570608,17.78702094,218.05,217.93,3.14]
[1736185570907,17.78702094,218.01,217.87,3.0235]
[1736185571106,17.78702094,218.01,217.88,3.14]
[1736185571308,17.78702094,217.97,217.88,3.14]
[1736185571512,2.2934,217.96,217.9,2.294]
[1736185571710,17.78702094,217.97,217.88,3.14]
[1736185571910,17.78702094,218.02,217.88,3.14]
[1736185572106,2.2931,217.99,217.93,2.2937]
[1736185572520,2.2929,218.01,217.95,2.2934]
[1736185572815,17.78702094,218.02,217.94,3.1]
[1736185573014,25.30343746,218.06,217.94,3.1]
[1736185573213,7.51641652,218.06,218.02,2.2928]
[1736185573517,7.51641652,218.06,217.95,1.4341]
[1736185573913,7.51641652,218.06,217.96,3.1]
[1736185574413,2.2927,218.03,217.98,2.2932]
[1736185575215,7.51641652,218.06,217.96,3.1]
[1736185575617,2.2925,218.05,217.96,3.1]
[1736185575811,2.2925,218.05,217.97,1.3971]
[1736185576615,2.2924,218.06,218.0,2.293]
[1736185576916,95.36045826,218.07,217.98,1.51]
[1736185577711,95.36045826,218.07,218.01,2.2928]
[1736185577910,95.36045826,218.07,217.98,1.51]
[1736185578113,95.36045826,218.07,217.84,17.78702094]
[1736185578315,2.2933,217.97,217.92,2.2938]
[1736185578515,17.78702094,218.0,217.85,4.5363]
[1736185579017,17.78702094,218.04,217.88,17.78702094]
[1736185579209,95.36045826,218.07,217.88,17.78702094]
[1736185579420,97.65275826,218.07,217.92,17.78702094]
[1736185579617,95.36045826,218.07,217.93,3.1]
[1736185580019,95.36045826,218.07,217.94,2.9737]
[1736185580421,95.36045826,218.07,217.96,17.78702094]
[1736185580611,17.78702094,218.13,217.96,17.78702094]
[1736185580818,17.78702094,218.17,218.0,17.78702094]
[1736185581016,2.2914,218.16,218.1,2.2919]
[1736185581215,2.2914,218.16,218.07,3.1]
[1736185582322,2.2914,218.15,218.1,2.2919]
[1736185582619,2.2914,218.15,218.07,3.1]
[1736185583215,2.2913,218.16,218.07,3.1]
[1736185583413,17.78702094,218.25,218.08,20.63662094]
[1736185583616,17.78702094,218.29,218.12,17.78702094]
[1736185583817,17.78702094,218.29,218.13,3.1]
[1736185584624,0.2422,218.31,218.13,3.1]
[1736185585123,2.2902,218.27,218.13,3.1]
[1736185585319,0.2422,218.31,218.13,3.1]
[1736185585713,17.78702094,218.25,218.13,3.1]
[1736185585914,17.78702094,218.25,218.15,2.2914]
[1736185586118,17.78702094,218.25,218.13,3.1]
[1736185586322,17.78702094,218.21,218.13,3.1]
[1736185586722,2.2912,218.17,218.13,3.1]
[1736185587023,17.78702094,218.21,218.13,3.1]
[1736185587721,17.78702094,218.21,218.14,2.2915]
[1736185587926,17.78702094,218.21,218.13,3.1]
[1736185588424,17.78702094,218.21,218.16,2.2912]
[1736185588824,2.291,218.19,218.13,3.1]
[1736185589025,17.78702094,218.21,218.13,3.1]
[1736185589525,2.291,218.19,218.13,5.3916]
[1736185589723,17.78702094,218.21,218.09,1.5449]
[1736185590026,17.78702094,218.21,218.1,3.1]
[1736185590227,17.78702094,218.17,218.1,3.1]
[1736185590426,17.78702094,218.17,218.09,2.292]
[1736185590830,2.2914,218.16,218.08,5.9496]
[1736185591127,17.78702094,218.21,218.08,5.9496]
[1736185591323,2.2911,218.18,218.08,5.9496]
[1736185591533,17.78702094,218.24,218.08,5.9496]
[1736185591921,17.78702094,218.2,218.09,1.4843]
[1736185592325,17.78702094,218.2,218.09,4.5843]
[1736185592525,17.78702094,218.2,218.12,2.2917]
[1736185592724,128.85330846,218.6,218.18,17.78702094]
[1736185592925,2.2895,218.34,218.19,6.0813]
[1736185593126,0.2401,218.43,218.22,17.78702094]
[1736185593431,0.2401,218.43,218.26,17.78702094]
[1736185593629,0.2401,218.43,218.27,3.1]
[1736185593824,0.2401,218.43,218.32,2.2895]
[1736185594028,2.2888,218.4,218.33,3.1]
[1736185594333,0.2401,218.43,218.33,3.1]
[1736185594833,18.02712094,218.43,218.33,3.1]
[1736185595024,28.80691808,218.4,218.29,3.1]
[1736185595333,2.2896,218.33,218.29,3.1]
[1736185595532,28.80691808,218.36,218.2,1.4487]
[1736185595732,2.2897,218.32,218.21,3.1]
[1736185595924,28.80691808,218.36,218.25,2.2904]
[1736185596124,0.2401,218.43,218.26,28.80691808]
[1736185596425,0.2401,218.43,218.27,3.1]
[1736185596731,2.289,218.38,218.33,2.2895]
[1736185596926,2.289,218.38,218.33,5.3895]
[1736185597123,2.2889,218.4,218.34,2.2894]
[1736185597325,28.80691808,218.79,218.34,28.80691808]
[1736185597524,124.02076966,218.55,218.35,2.9277]
[1736185597733,124.02076966,218.55,218.4,2.2888]
[1736185597931,28.80691808,218.51,218.39,3.1]
[1736185598633,0.2363,218.5,218.39,3.1]
[1736185599331,95.21385158,218.55,218.39,3.1]
[1736185599633,28.80691808,218.54,218.4,3.1]
[1736185599833,28.80691808,218.54,218.41,3.1]
[1736185600035,2.2882,218.46,218.38,2.289]
[1736185600233,2.2882,218.46,218.4,3.28]
[1736185600530,2.2888,218.4,218.35,3.28]
[1736185601631,2.2885,218.43,218.35,3.28]
[1736185601936,28.80691808,218.46,218.35,3.28]
[1736185602436,95.21385158,218.55,218.35,3.28]
[1736185602437,2.2884,218.44,218.38,2.2889]
[1736185602833,28.80691808,218.47,218.35,3.28]
[1736185603136,28.80691808,218.47,218.32,3.28]
[1736185603332,2.2885,218.43,218.32,3.28]
[1736185603634,28.80691808,218.47,218.32,3.28]
[1736185604035,2.2886,218.42,218.37,2.2891]
[1736185604339,28.80691808,218.47,218.32,3.28]
[1736185604636,28.80691808,218.47,218.35,2.2893]
[1736185605239,28.80691808,218.52,218.36,2.2892]
[1736185605436,28.80691808,218.52,218.34,28.80691808]
[1736185606238,28.80691808,218.52,218.37,2.289]
[1736185606440,0.2355,218.54,218.38,3.28]
[1736185606441,28.80691808,218.48,218.38,3.28]
[1736185607440,2.2884,218.44,218.38,5.5689]
[1736185607839,28.80691808,218.48,218.38,3.28]
[1736185608043,3.28,218.49,218.38,3.28]
[1736185608237,3.28,218.51,218.38,3.28]
[1736185608542,3.28,218.51,218.4,2.2888]
[1736185608543,2.2883,218.45,218.4,2.2888]
[1736185609941,2.2884,218.44,218.39,2.2889]
[1736185611444,28.80691808,218.48,218.35,4.7159]
[1736185611743,28.80691808,218.48,218.33,3.28]
[1736185611940,28.80691808,218.48,218.34,2.2893]
[1736185612839,28.80691808,218.48,218.33,3.28]
[1736185613038,28.80691808,218.52,218.4,2.2887]
[1736185613344,2.2882,218.46,218.33,32.08691808]
[1736185613644,28.80691808,218.52,218.41,2.2887]
[1736185613845,2.2883,218.45,218.41,2.2887]
[1736185614841,29.04241808,218.54,218.39,3.28]
[1736185615043,29.04241808,218.54,218.46,2.2881]
[1736185615341,2.2877,218.51,218.46,2.2881]
[1736185615536,29.04241808,218.54,218.46,2.2881]
[1736185616139,2.2877,218.51,218.46,2.2881]
[1736185616439,29.04241808,218.54,218.46,2.2881]
[1736185616647,2.2875,218.52,218.47,2.288]
[1736185617139,17.6993386,218.57,218.45,3.28]
[1736185617445,2.2874,218.54,218.45,3.28]
[1736185617635,17.6993386,218.57,218.45,3.28]
[1736185618036,2.2876,218.52,218.48,2.2879]
[1736185618237,17.6993386,218.57,218.48,2.2879]
[1736185618739,3.28,218.6,218.45,3.28]
[1736185618740,17.6993386,218.53,218.45,3.28]
[1736185619141,2.2881,218.48,218.45,3.28]
[1736185619336,17.6993386,218.53,218.45,3.28]
[1736185619942,17.6993386,218.49,218.4,1.468]
[1736185620146,17.6993386,218.49,218.37,3.28]
[1736185620849,2.2885,218.44,218.39,2.2889]
[1736185621049,3.28,218.52,218.37,3.28]
[1736185621347,2.2882,218.47,218.37,3.28]
[1736185621543,3.28,218.52,218.38,3.28]
[1736185622140,3.28,218.52,218.41,2.2886]
[1736185622345,3.28,218.52,218.38,3.28]
[1736185622549,17.6993386,218.57,218.38,3.28]
[1736185622739,17.6993386,218.57,218.4,17.6993386]
[1736185623137,2.2878,218.5,218.4,17.6993386]
[1736185623549,17.6993386,218.57,218.4,17.6993386]
[1736185624143,2.2876,218.52,218.4,17.6993386]
[1736185624348,2.2876,218.52,218.48,2.2879]
[1736185624747,17.6993386,218.57,218.45,3.28]
[1736185624947,20.9793386,218.57,218.45,3.28]
[1736185625947,2.2879,218.49,218.45,5.5682]
[1736185626349,20.9793386,218.57,218.45,3.28]
[1736185626547,20.9793386,218.57,218.47,2.288]
[1736185626754,17.6993386,218.57,218.47,2.288]
[1736185628151,2.2878,218.5,218.46,2.2881]
[1736185629148,3.28,218.61,218.45,3.28]
[1736185629351,20.9793386,218.61,218.45,3.28]
[1736185629543,20.9793386,218.61,218.46,1.4496]
[1736185629746,20.9793386,218.61,218.5,2.2877]
[1736185629945,20.9793386,218.61,218.46,2.8525]
[1736185630347,17.6993386,218.57,218.46,1.4496]
[1736185630549,17.6993386,218.57,218.45,3.28]
[1736185630748,2.2881,218.47,218.42,25.20390057]
[1736185630947,2.2881,218.47,218.43,3.18]
[1736185631150,7.7533,218.61,218.43,3.18]
[1736185631354,17.6993386,218.56,218.43,3.18]
[1736185631551,17.6993386,218.56,218.41,1.4496]
[1736185631751,17.6993386,218.56,218.42,5.4686]
[1736185631949,17.6993386,218.56,218.42,3.18]
[1736185632352,2.288,218.48,218.42,3.18]
[1736185633257,17.6993386,218.57,218.42,3.18]
[1736185633457,2.2876,218.52,218.48,2.2879]
[1736185633760,17.6993386,218.57,218.48,2.2879]
[1736185633956,2.2876,218.51,218.48,2.2879]
[1736185634659,2.2876,218.52,218.48,2.2879]
[1736185634853,2.2876,218.52,218.49,2.2878]
[1736185635549,2.2876,218.52,218.45,2.2882]
[1736185635751,2.2876,218.52,218.43,19.1528386]